fUST/lending_fUST_20250718
["ID","MTS","AMOUNT","RATE_DAILY","PERIOD"]
[373069323,1752852647460,-1000.0,0.00017621,2]
[373069325,1752852647472,-481.09729519,0.00017621,2]
[373069328,1752852647486,-500.0,0.0001763,2]
[373069330,1752852647499,-512.61642022,0.00017666,2]
[373069332,1752852647513,-1047.72,0.00017841,3]
[373069334,1752852647523,-523.86,0.00017841,3]
[373069337,1752852647533,-460.0,0.00017849,2]
[373069339,1752852647552,-2913.23,0.00017849,2]
[373069355,1752852647695,-460.0,0.0001785,2]
[373069358,1752852647717,-604.29,0.0001785,2]
[373069360,1752852647731,-460.0,0.0001785,2]
[373069362,1752852647740,-336.34506952,0.0001785,2]
[373069364,1752852647750,-208.94,0.0001785,2]
[373069366,1752852647759,-1091.13,0.0001785,2]
[373069368,1752852647768,-460.0,0.0001785,2]
[373069370,1752852647778,-2232.44,0.0001785,2]
[373069372,1752852647789,-460.0,0.0001785,2]
[373069374,1752852647801,-293.13,0.0001785,2]
[373069376,1752852647811,-697.81,0.0001785,2]
[373069378,1752852647820,-686.67,0.0001785,2]
[373069380,1752852647829,-750.33,0.00017851,2]
[373069382,1752852647838,-460.0,0.00017851,2]
[373069384,1752852647848,-606.76,0.00017851,2]
[373069386,1752852647857,-460.0,0.00017851,2]
[373069388,1752852647867,-460.0,0.00017851,2]
[373069390,1752852647877,-452.43,0.00017851,2]
[373069392,1752852647887,-460.0,0.00017851,2]
[373069394,1752852647897,-460.0,0.00017851,2]
[373069396,1752852647906,-460.0,0.00017851,2]
[373069398,1752852647915,-3953.97,0.00017851,2]
[373069400,1752852647925,-1021.09,0.00017851,2]
[373069402,1752852647934,-687.08,0.00017851,2]
[373069404,1752852647943,-460.0,0.00017851,2]
[373069406,1752852647953,-3082.93,0.00017851,2]
[373069408,1752852647962,-460.0,0.00017851,2]
[373069410,1752852647972,-3225.27,0.00017851,2]
[373069412,1752852647981,-460.0,0.00017851,2]
[373069414,1752852647990,-460.0,0.00017851,2]
[373069416,1752852648000,-3801.97,0.00017851,2]
[373069418,1752852648009,-7609.22,0.00017851,2]
[373069420,1752852648019,-494.18,0.00017851,2]
[373069422,1752852648028,-460.0,0.00017851,2]
[373069424,1752852648037,-460.0,0.00017852,2]
[373069426,1752852648050,-4821.87,0.00017852,2]
[373069428,1752852648059,-1525.21,0.00017852,2]
[373069430,1752852648068,-2237.88,0.00017852,2]
[373069432,1752852648078,-3358.29,0.00017852,2]
[373069434,1752852648087,-460.0,0.00017855,2]
[373069436,1752852648097,-460.0,0.00017855,2]
[373069438,1752852648110,-350.32,0.00017855,2]
[373069440,1752852648119,-433.44,0.00017855,2]
[373069442,1752852648129,-1379.08,0.00017855,2]
[373069444,1752852648139,-460.0,0.00017855,2]
[373069446,1752852648149,-460.0,0.00017855,2]
[373069448,1752852648159,-460.0,0.00017855,2]
[373069450,1752852648169,-460.0,0.00017855,2]
[373069452,1752852648179,-1026.25,0.00017855,2]
[373069454,1752852648188,-460.0,0.00017855,2]
[373069456,1752852648198,-656.14,0.00017855,2]
[373069458,1752852648207,-460.0,0.00017855,2]
[373069460,1752852648217,-533.73,0.00017855,2]
[373069462,1752852648227,-460.0,0.00017855,2]
[373069464,1752852648236,-460.0,0.00017855,2]
[373069466,1752852648248,-460.0,0.00017855,2]
[373069468,1752852648258,-1148.62,0.00017855,2]
[373069470,1752852648268,-1315.07,0.00017855,2]
[373069472,1752852648277,-535.63,0.00017855,2]
[373069474,1752852648287,-256.90276891,0.00017855,2]
[373069476,1752852648300,-460.0,0.00017855,2]
[373069478,1752852648309,-766.32,0.00017855,2]
[373069480,1752852648319,-1504.61,0.00017855,2]
[373069482,1752852648328,-460.0,0.00017856,2]
[373069484,1752852648338,-2075.58,0.00017856,2]
[373069486,1752852648350,-4966.78,0.00017856,2]
[373069488,1752852648360,-697.81,0.00017856,2]
[373069489,1752852648369,-460.0,0.00017856,2]
[373069491,1752852648379,-2411.26,0.00017856,2]
[373069493,1752852648389,-2567.83025201,0.00017888,2]
[373069495,1752852648398,-3116.09040582,0.000179,2]
[373069497,1752852648408,-1000.0,0.00017929,2]
[373069499,1752852648417,-230.89969799,0.00017973,2]
[373069501,1752852648427,-160.0,0.00017973,2]
[373069503,1752852648437,-160.0,0.00017973,2]
[373069505,1752852648447,-215.63268315,0.00017973,2]
[373069507,1752852648456,-476.25663856,0.00017973,2]
[373069509,1752852648466,-839.30593155,0.00017973,2]
[373069511,1752852648476,-525.75194068,0.00017973,2]
[373069513,1752852648486,-160.0,0.00017973,2]
[373069515,1752852648495,-160.0,0.00017973,2]
[373069517,1752852648505,-160.0,0.00017973,2]
[373069519,1752852648515,-214.4881157,0.00017973,2]
[373069521,1752852648524,-160.0,0.00017973,2]
[373069524,1752852648534,-9171.56621378,0.00017973,2]
[373069540,1752852648684,-3438.87368044,0.00017973,2]
[373069542,1752852648694,-160.0,0.00017973,2]
[373069544,1752852648704,-160.0,0.00017973,2]
[373069546,1752852648714,-889.33185781,0.00018,2]
[373069548,1752852648729,-1834.88372493,0.00018,2]
[373069550,1752852648742,-3754.4356929,0.00018,2]
[373069552,1752852648752,-2945.88394572,0.00018,2]
[373069555,1752852648764,-5605.38598848,0.00018,2]
[373069557,1752852648783,-460.0,0.00017303,2]
[373069560,1752852648796,-8001.67715518,0.00018,2]
[373069561,1752852648807,-420.0,0.00018006,2]
[373069563,1752852648817,-697.81,0.0001808,2]
[373069565,1752852648828,-1000.0,0.00018086,2]
[373069568,1752852648839,-1680.0,0.00018096,2]
[373069570,1752852648849,-460.0,0.00018123,2]
[373069571,1752852648859,-2913.23,0.00018123,2]
[373069573,1752852648869,-460.0,0.00018124,2]
[373069576,1752852648879,-604.29,0.00018124,2]
[373069578,1752852648890,-460.0,0.00018124,2]
[373069580,1752852648900,-1091.13,0.00018124,2]
[373069582,1752852648910,-460.0,0.00018124,2]
[373069584,1752852648920,-2232.44,0.00018124,2]
[373069586,1752852648929,-460.0,0.00018124,2]
[373069588,1752852648939,-200.0,0.00018124,2]
[373069590,1752852648949,-686.67,0.00018124,2]
[373069591,1752852648959,-750.33,0.00018125,2]
[373069593,1752852648969,-347.98,0.00018125,2]
[373069595,1752852648979,-606.76,0.00018125,2]
[373069597,1752852648990,-460.0,0.00018125,2]
[373069599,1752852649002,-218.45,0.00018125,2]
[373069601,1752852649012,-380.23,0.00018125,2]
[373069603,1752852649022,-460.0,0.00018125,2]
[373069605,1752852649032,-324.92702152,0.00018125,2]
[373069607,1752852649045,-3953.97,0.00018125,2]
[373069609,1752852649055,-1021.09,0.00018125,2]
[373069611,1752852649065,-687.08,0.00018125,2]
[373069613,1752852649076,-460.0,0.00018125,2]
[373069615,1752852649085,-3082.93,0.00018125,2]
[373069617,1752852649095,-460.0,0.00018125,2]
[373069619,1752852649105,-3225.27,0.00018125,2]
[373069621,1752852649115,-460.0,0.00018125,2]
[373069623,1752852649124,-697.81,0.00018125,2]
[373069625,1752852649134,-3801.97,0.00018125,2]
[373069627,1752852649144,-7609.22,0.00018125,2]
[373069629,1752852649153,-494.18,0.00018125,2]
[373069631,1752852649164,-460.0,0.00018125,2]
[373069633,1752852649173,-460.0,0.00018126,2]
[373069635,1752852649183,-4821.87,0.00018126,2]
[373069637,1752852649193,-1525.21,0.00018126,2]
[373069639,1752852649203,-2237.88,0.00018126,2]
[373069641,1752852649213,-3358.29,0.00018126,2]
[373069643,1752852649223,-460.0,0.00018129,2]
[373069645,1752852649233,-460.0,0.00018129,2]
[373069647,1752852649243,-1379.08,0.00018129,2]
[373069649,1752852649253,-460.0,0.00018129,2]
[373069651,1752852649264,-460.0,0.00018129,2]
[373069653,1752852649274,-284.90530951,0.00018129,2]
[373069655,1752852649284,-460.0,0.00018129,2]
[373069657,1752852649297,-1026.25,0.00018129,2]
[373069659,1752852649307,-460.0,0.00018129,2]
[373069661,1752852649317,-656.14,0.00018129,2]
[373069663,1752852649326,-460.0,0.00018129,2]
[373069665,1752852649336,-533.73,0.00018129,2]
[373069667,1752852649346,-460.0,0.00018129,2]
[373069669,1752852649355,-460.0,0.00018129,2]
[373069671,1752852649364,-460.0,0.00018129,2]
[373069673,1752852649374,-151.0,0.00018129,2]
[373069675,1752852649384,-1148.62,0.00018129,2]
[373069677,1752852649393,-151.0,0.00018129,2]
[373069679,1752852649403,-1315.07,0.00018129,2]
[373069681,1752852649413,-535.63,0.00018129,2]
[373069683,1752852649423,-460.0,0.00018129,2]
[373069685,1752852649432,-766.32,0.00018129,2]
[373069687,1752852649442,-1504.61,0.00018129,2]
[373069689,1752852649452,-460.0,0.0001813,2]
[373069691,1752852649462,-2075.58,0.0001813,2]
[373069693,1752852649472,-4966.78,0.0001813,2]
[373069695,1752852649482,-151.0,0.0001813,2]
[373069697,1752852649492,-178.08125072,0.0001813,2]
[373069699,1752852649501,-2411.26,0.0001813,2]
[373069701,1752852649510,-151.0,0.00018131,2]
[373069703,1752852649520,-151.0,0.00018131,2]
[373069705,1752852649530,-1008.65862,0.00018131,2]
[373069707,1752852649539,-1008.65862,0.00018131,2]
[373069710,1752852649551,-151.0,0.00018131,2]
[373069711,1752852649561,-151.0,0.00018131,2]
[373069713,1752852649570,-151.0,0.00018135,2]
[373069715,1752852649580,-151.0,0.00018135,2]
[373069717,1752852649589,-3116.09040571,0.00018141,2]
[373069720,1752852649599,-1000.0,0.00018168,2]
[373069722,1752852649608,-1500.0,0.00018168,2]
[373069724,1752852649618,-1500.0,0.00018168,2]
[373069726,1752852649627,-1000.0,0.00018178,2]
[373069727,1752852649637,-697.81,0.00018189,2]
[373069729,1752852649647,-151.0,0.0001819,2]
[373069731,1752852649656,-151.0,0.0001819,2]
[373069733,1752852649665,-151.0,0.0001819,2]
[373069735,1752852649674,-151.0,0.0001819,2]
[373069737,1752852649684,-151.0,0.0001819,2]
[373069739,1752852649693,-151.0,0.0001819,2]
[373069741,1752852649703,-151.0,0.0001819,2]
[373069743,1752852649716,-151.0,0.00018287,2]
[373069745,1752852649730,-151.0,0.00018287,2]
[373069747,1752852649742,-800.0,0.00018365,2]
[373069749,1752852649752,-3116.09040571,0.00018383,2]
[373069751,1752852649763,-697.81,0.00018388,2]
[373069753,1752852649773,-460.0,0.00018397,2]
[373069756,1752852649782,-2913.23,0.00018397,2]
[373069758,1752852649793,-460.0,0.00018398,2]
[373069760,1752852649805,-604.29,0.00018398,2]
[373069762,1752852649815,-460.0,0.00018398,2]
[373069764,1752852649825,-1091.13,0.00018398,2]
[373069766,1752852649835,-460.0,0.00018398,2]
[373069768,1752852649845,-2232.44,0.00018398,2]
[373069770,1752852649855,-460.0,0.00018398,2]
[373069772,1752852649864,-686.67,0.00018398,2]
[373069784,1752852649976,-750.33,0.00018399,2]
[373069786,1752852649986,-151.0,0.00018399,2]
[373069788,1752852649995,-151.0,0.00018399,2]
[373069790,1752852650005,-151.0,0.00018399,2]
[373069792,1752852650014,-606.76,0.00018399,2]
[373069794,1752852650024,-460.0,0.00018399,2]
[373069796,1752852650033,-151.0,0.00018399,2]
[373069798,1752852650045,-395.752815,0.00018399,2]
[373069800,1752852650054,-395.752815,0.00018399,2]
[373069802,1752852650064,-460.0,0.00018399,2]
[373069804,1752852650074,-3953.97,0.00018399,2]
[373069806,1752852650083,-1021.09,0.00018399,2]
[373069808,1752852650093,-687.08,0.00018399,2]
[373069810,1752852650103,-460.0,0.00018399,2]
[373069812,1752852650112,-3082.93,0.00018399,2]
[373069814,1752852650122,-460.0,0.00018399,2]
[373069816,1752852650131,-3225.27,0.00018399,2]
[373069818,1752852650140,-460.0,0.00018399,2]
[373069820,1752852650150,-3801.97,0.00018399,2]
[373069822,1752852650160,-7609.22,0.00018399,2]
[373069824,1752852650170,-494.18,0.00018399,2]
[373069826,1752852650179,-460.0,0.00018399,2]
[373069828,1752852650189,-213.4,0.000184,2]
[373069830,1752852650199,-4821.87,0.000184,2]
[373069832,1752852650209,-1525.21,0.000184,2]
[373069834,1752852650218,-2237.88,0.000184,2]
[373069836,1752852650229,-3358.29,0.000184,2]
[373069838,1752852650238,-460.0,0.00018403,2]
[373069840,1752852650248,-460.0,0.00018403,2]
[373069842,1752852650258,-1379.08,0.00018403,2]
[373069845,1752852650268,-460.0,0.00018403,2]
[373069847,1752852650277,-460.0,0.00018403,2]
[373069849,1752852650287,-460.0,0.00018403,2]
[373069851,1752852650299,-1026.25,0.00018403,2]
[373069853,1752852650309,-460.0,0.00018403,2]
[373069854,1752852650318,-656.14,0.00018403,2]
[373069856,1752852650327,-460.0,0.00018403,2]
[373069858,1752852650336,-533.73,0.00018403,2]
[373069861,1752852650346,-460.0,0.00018403,2]
[373069862,1752852650355,-460.0,0.00018403,2]
[373069864,1752852650365,-460.0,0.00018403,2]
[373069866,1752852650375,-1148.62,0.00018403,2]
[373069868,1752852650385,-1315.07,0.00018403,2]
[373069870,1752852650394,-697.81,0.00018403,2]
[373069872,1752852650404,-535.63,0.00018403,2]
[373069875,1752852650414,-460.0,0.00018403,2]
[373069876,1752852650424,-1504.61,0.00018403,2]
[373069878,1752852650433,-766.32,0.00018403,2]
[373069881,1752852650443,-460.0,0.00018404,2]
[373069882,1752852650452,-2075.58,0.00018404,2]
[373069884,1752852650462,-4966.78,0.00018404,2]
[373069886,1752852650471,-2411.26,0.00018404,2]
[373069888,1752852650481,-1500.0,0.00018477,2]
[373069890,1752852650491,-273.706651,0.00018496,2]
[373069892,1752852650500,-273.706651,0.00018496,2]
[373069894,1752852650510,-1470.124048,0.00018496,2]
[373069896,1752852650519,-1470.124048,0.00018496,2]
[373069898,1752852650529,-178.776353,0.00018496,2]
[373069900,1752852650539,-178.776353,0.00018496,2]
[373069903,1752852650551,-151.0,0.00018496,2]
[373069905,1752852650560,-697.81,0.00018496,2]
[373069907,1752852650570,-697.81,0.00018496,2]
[373069909,1752852650579,-25000.0,0.00018497,2]
[373069911,1752852650589,-3280.68907199,0.00018497,2]
[373069913,1752852650598,-207.4,0.00018497,2]
[373069915,1752852650607,-500.0,0.00018497,2]
[373069917,1752852650616,-500.0,0.00018497,2]
[373069919,1752852650626,-523.53672427,0.00018497,2]
[373069920,1752852650635,-151.0,0.00018497,2]
[373069923,1752852650645,-151.0,0.00018497,2]
[373069925,1752852650654,-151.0,0.00018497,2]
[373069927,1752852650664,-151.0,0.00018497,2]
[373069929,1752852650673,-151.0,0.00018497,2]
[373069931,1752852650682,-151.0,0.00018497,2]
[373069933,1752852650692,-151.0,0.00018497,2]
[373069934,1752852650702,-151.0,0.00018497,2]
[373069936,1752852650711,-151.0,0.00018497,2]
[373069938,1752852650722,-151.0,0.00018497,2]
[373069940,1752852650735,-151.0,0.00018497,2]
[373069942,1752852650745,-151.0,0.00018497,2]
[373069945,1752852650761,-151.0,0.00018497,2]
[373069948,1752852650776,-151.0,0.00018497,2]
[373069950,1752852650786,-151.0,0.00018497,2]
[373069952,1752852650802,-183.99545918,0.00018497,2]
[373069954,1752852650812,-151.0,0.00018497,2]
[373069956,1752852650824,-151.0,0.00018497,2]
[373069958,1752852650834,-151.0,0.00018497,2]
[373069960,1752852650844,-3801.642,0.00018497,2]
[373069962,1752852650854,-151.0,0.00018497,2]
[373069965,1752852650864,-151.0,0.00018497,2]
[373069967,1752852650873,-151.0,0.00018497,2]
[373069969,1752852650883,-151.0,0.00018497,2]
[373069971,1752852650893,-151.0,0.00018497,2]
[373069973,1752852650903,-151.0,0.00018497,2]
[373069975,1752852650913,-151.0,0.00018497,2]
[373069977,1752852650923,-151.0,0.00018497,2]
[373069979,1752852650933,-151.0,0.00018497,2]
[373069981,1752852650942,-151.0,0.00018497,2]
[373069983,1752852650952,-290.14388846,0.00018497,2]
[373069985,1752852650961,-151.0,0.00018497,2]
[373069987,1752852650972,-151.0,0.00018497,2]
[373069989,1752852650981,-151.0,0.00018497,2]
[373069991,1752852650991,-151.0,0.00018497,2]
[373069993,1752852651001,-151.0,0.00018497,2]
[373069995,1752852651011,-151.0,0.00018497,2]
[373069998,1752852651022,-151.0,0.00018497,2]
[373070000,1752852651031,-151.0,0.00018497,2]
[373070002,1752852651042,-151.0,0.00018497,2]
[373070004,1752852651052,-184.17851102,0.00018497,2]
[373070005,1752852651064,-697.81,0.00018497,2]
[373070007,1752852651073,-2567.83025201,0.00018505,2]
[373070010,1752852651083,-160.0,0.00018535,2]
[373070012,1752852651093,-501.01174983,0.00018536,2]
[373070014,1752852651103,-500.0,0.00018536,2]
[373070016,1752852651113,-500.0,0.00018536,2]
[373070018,1752852651123,-500.51612025,0.00018536,2]
[373070019,1752852651132,-500.49049963,0.00018536,2]
[373070021,1752852651142,-612.57046247,0.00018536,2]
[373070024,1752852651152,-500.0,0.00018536,2]
[373070026,1752852651163,-500.0,0.00018536,2]
[373070028,1752852651173,-3538.52628708,0.00018552,2]
[373070030,1752852651183,-10158.10568181,0.00018578,2]
[373070032,1752852651193,-180.16293017,0.000186,2]
[373070034,1752852651203,-3116.09040571,0.00018624,2]
[373070036,1752852651214,-1000.0,0.00018634,2]
[373070038,1752852651224,-500.0,0.00018663,2]
[373070040,1752852651233,-500.0,0.00018663,2]
[373070042,1752852651243,-501.03059136,0.00018663,2]
[373070044,1752852651253,-500.0,0.00018663,2]
[373070046,1752852651263,-500.48350422,0.00018663,2]
[373070048,1752852651273,-500.0,0.00018663,2]
[373070049,1752852651283,-500.13680173,0.00018663,2]
[373070050,1752852651294,-501.25240705,0.00018663,2]
[373070051,1752852651304,-509.4480629,0.00018663,2]
[373070052,1752852651313,-300.87706205,0.00018663,2]
[373070053,1752852651323,-500.0,0.00018663,2]
[373070054,1752852651333,-500.45090617,0.00018663,2]
[373070055,1752852651343,-500.0,0.00018663,2]
[373070056,1752852651353,-501.31250054,0.00018663,2]
[373070057,1752852651362,-500.0,0.00018663,2]
[373070058,1752852651373,-500.0,0.00018663,2]
[373070059,1752852651383,-500.34170007,0.00018663,2]
[373070060,1752852651393,-500.0,0.00018663,2]
[373070061,1752852651403,-501.0352454,0.00018663,2]
[373070062,1752852651412,-500.0,0.00018663,2]
[373070064,1752852651422,-460.0,0.00018671,2]
[373070065,1752852651432,-2913.23,0.00018671,2]
[373070067,1752852651441,-522.63800388,0.00018672,2]
[373070069,1752852651451,-604.29,0.00018672,2]
[373070071,1752852651461,-460.0,0.00018672,2]
[373070073,1752852651471,-151.0,0.00018672,2]
[373070076,1752852651482,-151.0,0.00018672,2]
[373070078,1752852651493,-1091.13,0.00018672,2]
[373070079,1752852651503,-1008.65862,0.00018672,2]
[373070082,1752852651512,-1008.65862,0.00018672,2]
[373070083,1752852651522,-460.0,0.00018672,2]
[373070085,1752852651532,-2232.44,0.00018672,2]
[373070087,1752852651541,-151.0,0.00018672,2]
[373070090,1752852651551,-460.0,0.00018672,2]
[373070092,1752852651561,-151.0,0.00018672,2]
[373070094,1752852651571,-697.81,0.00018672,2]
[373070096,1752852651581,-151.0,0.00018672,2]
[373070098,1752852651591,-151.0,0.00018672,2]
[373070100,1752852651601,-151.0,0.00018672,2]
[373070102,1752852651610,-686.67,0.00018672,2]
[373070104,1752852651620,-750.33,0.00018673,2]
[373070106,1752852651630,-606.76,0.00018673,2]
[373070108,1752852651639,-460.0,0.00018673,2]
[373070110,1752852651649,-151.0,0.00018673,2]
[373070112,1752852651659,-460.0,0.00018673,2]
[373070114,1752852651669,-3953.97,0.00018673,2]
[373070116,1752852651679,-1021.09,0.00018673,2]
[373070118,1752852651689,-687.08,0.00018673,2]
[373070120,1752852651698,-460.0,0.00018673,2]
[373070122,1752852651708,-3082.93,0.00018673,2]
[373070124,1752852651718,-460.0,0.00018673,2]
[373070126,1752852651732,-3225.27,0.00018673,2]
[373070128,1752852651742,-460.0,0.00018673,2]
[373070130,1752852651752,-151.0,0.00018673,2]
[373070132,1752852651762,-3801.97,0.00018673,2]
[373070134,1752852651771,-7609.22,0.00018673,2]
[373070136,1752852651782,-494.18,0.00018673,2]
[373070138,1752852651795,-460.0,0.00018673,2]
[373070140,1752852651804,-151.0,0.00018674,2]
[373070142,1752852651814,-151.0,0.00018674,2]
[373070144,1752852651826,-151.0,0.00018674,2]
[373070146,1752852651835,-186.414309,0.00018674,2]
[373070148,1752852651845,-186.414309,0.00018674,2]
[373070150,1752852651855,-559.568176,0.00018674,2]
[373070152,1752852651865,-559.568176,0.00018674,2]
[373070154,1752852651875,-4821.87,0.00018674,2]
[373070156,1752852651886,-151.0,0.00018674,2]
[373070158,1752852651896,-1525.21,0.00018674,2]
[373070160,1752852651906,-151.0,0.00018674,2]
[373070162,1752852651916,-2237.88,0.00018674,2]
[373070164,1752852651934,-3358.29,0.00018674,2]
[373070166,1752852651949,-460.0,0.00018677,2]
[373070168,1752852651958,-151.0,0.00018677,2]
[373070170,1752852651967,-220.51434054,0.00018677,2]
[373070172,1752852651977,-151.0,0.00018677,2]
[373070174,1752852651986,-151.0,0.00018677,2]
[373070176,1752852651996,-1379.08,0.00018677,2]
[373070178,1752852652005,-151.0,0.00018677,2]
[373070180,1752852652015,-151.0,0.00018677,2]
[373070182,1752852652025,-460.0,0.00018677,2]
[373070184,1752852652034,-460.0,0.00018677,2]
[373070186,1752852652046,-460.0,0.00018677,2]
[373070188,1752852652055,-1026.25,0.00018677,2]
[373070190,1752852652065,-279.87905241,0.00018677,2]
[373070192,1752852652074,-656.14,0.00018677,2]
[373070194,1752852652083,-460.0,0.00018677,2]
[373070196,1752852652094,-533.73,0.00018677,2]
[373070198,1752852652104,-460.0,0.00018677,2]
[373070200,1752852652114,-460.0,0.00018677,2]
[373070213,1752852652228,-460.0,0.00018677,2]
[373070215,1752852652239,-1148.62,0.00018677,2]
[373070217,1752852652249,-1315.07,0.00018677,2]
[373070219,1752852652259,-535.63,0.00018677,2]
[373070221,1752852652268,-460.0,0.00018677,2]
[373070223,1752852652278,-1504.61,0.00018677,2]
[373070225,1752852652288,-766.32,0.00018677,2]
[373070227,1752852652300,-150.77387495,0.00018678,2]
[373070229,1752852652310,-500.0,0.00018678,2]
[373070231,1752852652320,-500.0,0.00018678,2]
[373070233,1752852652330,-500.0,0.00018678,2]
[373070235,1752852652340,-500.46330033,0.00018678,2]
[373070237,1752852652349,-158.15036073,0.00018678,2]
[373070239,1752852652359,-500.0,0.00018678,2]
[373070241,1752852652368,-501.78159277,0.00018678,2]
[373070243,1752852652379,-500.0,0.00018678,2]
[373070245,1752852652388,-151.0,0.00018678,2]
[373070247,1752852652398,-151.0,0.00018678,2]
[373070249,1752852652408,-273.698498,0.00018678,2]
[373070251,1752852652417,-151.0,0.00018678,2]
[373070253,1752852652427,-395.752815,0.00018678,2]
[373070255,1752852652436,-395.752815,0.00018678,2]
[373070257,1752852652445,-460.0,0.00018678,2]
[373070259,1752852652455,-2075.58,0.00018678,2]
[373070261,1752852652464,-4966.78,0.00018678,2]
[373070263,1752852652473,-2411.26,0.00018678,2]
[373070265,1752852652483,-2100.20592339,0.00018716,2]
[373070267,1752852652492,-1500.0,0.00018716,2]
[373070269,1752852652503,-1000.0,0.00018726,2]
[373070271,1752852652512,-697.81,0.00018727,2]
[373070273,1752852652522,-151.0,0.000188,2]
[373070275,1752852652531,-304.496438,0.00018865,2]
[373070277,1752852652540,-304.496438,0.00018865,2]
[373070279,1752852652552,-426.099004,0.00018865,2]
[373070280,1752852652561,-426.099004,0.00018865,2]
[373070282,1752852652571,-151.0,0.00018865,2]
[373070284,1752852652579,-151.0,0.00018865,2]
[373070286,1752852652589,-3116.09040571,0.00018866,2]
[373070288,1752852652599,-151.0,0.000189,2]
[373070290,1752852652608,-151.0,0.000189,2]
[373070292,1752852652617,-151.0,0.000189,2]
[373070294,1752852652628,-151.0,0.000189,2]
[373070296,1752852652637,-151.0,0.000189,2]
[373070298,1752852652647,-157.854409,0.000189,2]
[373070300,1752852652657,-157.854409,0.000189,2]
[373070302,1752852652666,-151.0,0.000189,2]
[373070305,1752852652676,-3763.49141731,0.000189,2]
[373070306,1752852652686,-460.0,0.00018945,2]
[373070308,1752852652696,-2913.23,0.00018945,2]
[373070310,1752852652706,-604.29,0.00018946,2]
[373070312,1752852652716,-460.0,0.00018946,2]
[373070315,1752852652729,-1091.13,0.00018946,2]
[373070316,1752852652739,-460.0,0.00018946,2]
[373070318,1752852652748,-2232.44,0.00018946,2]
[373070320,1752852652757,-460.0,0.00018946,2]
[373070322,1752852652767,-686.67,0.00018946,2]
[373070324,1752852652779,-750.33,0.00018947,2]
[373070326,1752852652788,-606.76,0.00018947,2]
[373070328,1752852652801,-460.0,0.00018947,2]
[373070330,1752852652812,-460.0,0.00018947,2]
[373070332,1752852652822,-3953.97,0.00018947,2]
[373070334,1752852652832,-1021.09,0.00018947,2]
[373070336,1752852652841,-687.08,0.00018947,2]
[373070338,1752852652851,-460.0,0.00018947,2]
[373070340,1752852652861,-3082.93,0.00018947,2]
[373070342,1752852652871,-460.0,0.00018947,2]
[373070344,1752852652880,-3225.27,0.00018947,2]
[373070346,1752852652890,-460.0,0.00018947,2]
[373070348,1752852652901,-697.81,0.00018947,2]
[373070350,1752852652911,-3801.97,0.00018947,2]
[373070352,1752852652920,-7609.22,0.00018947,2]
[373070354,1752852652929,-494.18,0.00018947,2]
[373070356,1752852652939,-460.0,0.00018947,2]
[373070358,1752852652949,-4821.87,0.00018948,2]
[373070360,1752852652959,-1525.21,0.00018948,2]
[373070362,1752852652969,-2237.88,0.00018948,2]
[373070364,1752852652979,-3358.29,0.00018948,2]